bitfinex/quotes_BTCUSD_20250829
["timestamp","ask_amount","ask_price","bid_price","bid_amount"]
[1756467542540,0.21884638,110110.0,110100.0,0.07331776]
[1756467545384,0.21884638,110110.0,110100.0,0.10189518]
[1756467545773,0.21884638,110110.0,110100.0,0.07331776]
[1756467547321,0.21884638,110110.0,110100.0,0.07132776]
[1756467547745,0.21884638,110110.0,110100.0,0.07331776]
[1756467547924,0.21884638,110110.0,110100.0,0.07132776]
[1756467548181,0.18692654,110110.0,110100.0,0.07132776]
[1756467548387,0.26280078,110110.0,110100.0,0.00144776]
[1756467549145,0.28243354,110110.0,110100.0,0.00144776]
[1756467549351,0.28243354,110110.0,110100.0,0.00044776]
[1756467549551,0.29664863,110110.0,110100.0,0.00044776]
[1756467550056,0.29864863,110110.0,110100.0,0.00044776]
[1756467551099,0.29964863,110110.0,110100.0,0.00044776]
[1756467551557,0.29864863,110110.0,110100.0,0.00044776]
[1756467551736,0.29664863,110110.0,110100.0,0.00044776]
[1756467551944,0.28243354,110110.0,110100.0,0.00044776]
[1756467552143,0.28343354,110110.0,110100.0,0.00044776]
[1756467552307,0.28543354,110110.0,110100.0,0.00044776]
[1756467554136,0.28443354,110110.0,110100.0,0.00044776]
[1756467554817,0.28643354,110110.0,110100.0,0.00044776]
[1756467555171,0.25673154,110110.0,110100.0,0.00044776]
[1756467555479,0.25472896,110110.0,110100.0,0.00044776]
[1756467555684,0.25572896,110110.0,110100.0,0.00044776]
[1756467557499,0.2308062,110110.0,110100.0,0.00243776]
[1756467557739,0.2360962,110110.0,110100.0,0.00044776]
[1756467557974,0.2768544,110110.0,110100.0,0.00044776]
[1756467558187,0.2758544,110110.0,110100.0,0.00044776]
[1756467558362,0.2350962,110110.0,110100.0,0.00044776]
[1756467558566,0.2330962,110110.0,110100.0,0.00044776]
[1756467558942,0.23408378,110110.0,110100.0,0.00044776]
[1756467559359,0.23308378,110110.0,110100.0,0.00044776]
[1756467559764,0.23408378,110110.0,110100.0,0.00044776]
[1756467559931,0.23608378,110110.0,110100.0,0.00044776]
[1756467560134,0.23408378,110110.0,110100.0,0.00044776]
[1756467561134,0.23308378,110110.0,110100.0,0.00044776]
[1756467561825,0.23408378,110110.0,110100.0,0.00044776]
[1756467562046,0.23408378,110110.0,110100.0,0.00246776]
[1756467562245,0.22879378,110110.0,110100.0,0.00246776]
[1756467562447,0.23378378,110110.0,110100.0,0.00044776]
[1756467563181,0.23278378,110110.0,110100.0,0.00044776]
[1756467563566,0.23378378,110110.0,110100.0,0.00044776]
[1756467563792,0.27805596,110110.0,110100.0,0.00044776]
[1756467564894,0.23378378,110110.0,110100.0,0.00044776]
[1756467565101,0.23278378,110110.0,110100.0,0.00044776]
[1756467565304,0.23378378,110110.0,110100.0,0.00044776]
[1756467568121,0.23378378,110110.0,110100.0,0.00246776]
[1756467568805,0.22879378,110110.0,110100.0,0.00246776]
[1756467569663,0.20184228,110110.0,110100.0,0.00044776]
[1756467569881,0.23378605,110110.0,110100.0,0.00044776]
[1756467570264,0.28412154,110110.0,110100.0,0.00044776]
[1756467572254,0.28512154,110110.0,110100.0,0.00044776]
[1756467573117,0.28612154,110110.0,110100.0,0.00044776]
[1756467573313,0.28412327,110110.0,110100.0,0.00044776]
[1756467574399,0.28512327,110110.0,110100.0,0.00044776]
[1756467576311,0.23378778,110110.0,110100.0,0.00044776]
[1756467576890,0.23380181,110110.0,110100.0,0.00044776]
[1756467579685,0.23380181,110110.0,110100.0,0.00246776]
[1756467580454,0.21675493,110110.0,110100.0,0.00246776]
[1756467580684,0.23381252,110110.0,110100.0,0.00246776]
[1756467580831,0.28515066,110110.0,110100.0,0.00246776]
[1756467581033,0.28016066,110110.0,110100.0,0.00246776]
[1756467581355,0.28514962,110110.0,110100.0,0.00246776]
[1756467581773,0.28514962,110110.0,110100.0,0.00044776]
[1756467584215,0.28514995,110110.0,110100.0,0.00044776]
[1756467585176,0.28414995,110110.0,110100.0,0.00246776]
[1756467585612,0.28514995,110110.0,110100.0,0.00246776]
[1756467586224,0.30479598,110110.0,110100.0,0.00246776]
[1756467586794,0.25345784,110110.0,110100.0,0.00246776]
[1756467586987,0.25245784,110110.0,110100.0,0.00246776]
[1756467587391,0.22882181,110110.0,110100.0,1.3474746]
[1756467587614,0.21959607,110110.0,110100.0,0.07234776]
[1756467587830,0.25971768,110110.0,110100.0,0.09764176]
[1756467588047,0.25971768,110110.0,110100.0,0.07032776]
[1756467588193,0.25871768,110110.0,110100.0,0.07032776]
[1756467590758,0.25971768,110110.0,110100.0,0.07032776]
[1756467591386,0.25970453,110110.0,110100.0,0.07032776]
[1756467592114,0.25970345,110110.0,110100.0,0.07032776]
[1756467593696,0.21958184,110110.0,110100.0,0.07032776]
[1756467594250,0.21459184,110110.0,110100.0,0.07229776]
[1756467595073,0.21664184,110110.0,110100.0,0.07229776]
[1756467595300,0.21966184,110110.0,110100.0,0.07032776]
[1756467595843,0.21114122,110110.0,110100.0,0.07032776]
[1756467596121,0.26599868,110110.0,110100.0,0.07032776]
[1756467598561,0.26598736,110110.0,110100.0,0.07032776]
[1756467601116,0.26598736,110110.0,110100.0,0.00044776]
[1756467601270,0.2574696,110110.0,110100.0,0.00044776]
[1756467601488,0.28019533,110110.0,110100.0,0.00044776]
[1756467601895,0.2659798,110110.0,110100.0,0.00044776]
[1756467604781,0.26598094,110110.0,110100.0,0.00044776]
[1756467611829,0.24043343,110110.0,110100.0,0.00044776]
[1756467612035,0.26598478,110110.0,110100.0,0.00044776]
[1756467612722,0.21964557,110110.0,110100.0,0.00241776]
[1756467613112,0.21964557,110110.0,110100.0,0.00044776]
[1756467613318,0.21457557,110110.0,110100.0,0.00241776]
[1756467614035,0.21964557,110110.0,110100.0,0.00241776]
[1756467614356,0.21864557,110110.0,110100.0,0.00044776]
[1756467614559,0.26846701,110110.0,110100.0,0.00044776]
[1756467615121,0.26946701,110110.0,110100.0,0.00241776]
[1756467615488,0.21964557,110110.0,110100.0,0.00241776]
[1756467615927,0.21964557,110110.0,110100.0,0.00044776]
[1756467616466,0.21357557,110110.0,110100.0,0.00241776]
[1756467616823,0.21964557,110110.0,110100.0,0.00044776]
[1756467617801,0.21964557,110110.0,110100.0,0.00144776]
[1756467618239,0.26683521,110110.0,110100.0,0.00144776]
[1756467618394,0.26583521,110110.0,110100.0,0.00144776]
[1756467618839,0.25944753,110110.0,110100.0,0.00144776]
[1756467619040,0.26583339,110110.0,110100.0,0.00144776]
[1756467619481,0.26683339,110110.0,110100.0,0.00044776]
[1756467621277,0.28104961,110110.0,110100.0,0.00044776]
[1756467621639,0.04842351,110110.0,110100.0,0.00044776]
[1756467621821,0.0264903,110110.0,110100.0,0.00044776]
[1756467621999,0.54812684,110110.0,110100.0,0.00044776]
[1756467622202,0.5677445,110110.0,110100.0,0.00044776]
[1756467622399,0.55071155,110110.0,110100.0,0.00044776]
[1756467622625,5.56773526,110110.0,110100.0,0.00044776]
[1756467622794,5.65603158,110110.0,110100.0,0.00044776]
[1756467623239,5.65967458,110110.0,110100.0,0.00044776]
[1756467623473,5.68032639,110110.0,110100.0,0.00044776]
[1756467623683,5.66289458,110110.0,110100.0,0.00044776]
[1756467623878,5.60292385,110110.0,110100.0,0.00044776]
[1756467625169,5.61714163,110110.0,110100.0,0.00044776]
[1756467626274,5.62114163,110110.0,110100.0,0.00044776]
[1756467626471,5.62014163,110110.0,110100.0,0.00044776]
[1756467627496,5.62314163,110110.0,110100.0,0.00044776]
[1756467631798,5.60892385,110110.0,110100.0,0.00044776]
[1756467633004,5.60570385,110110.0,110100.0,0.00044776]
[1756467633206,5.60570385,110110.0,110100.0,0.00578776]
[1756467633207,5.51938753,110110.0,110100.0,0.00578776]
[1756467633370,5.52187707,110110.0,110100.0,0.00044776]
[1756467633822,0.18165304,110100.0,110090.0,0.0004]
[1756467634050,5.23312582,110100.0,110090.0,0.00048664]
[1756467634259,0.23511582,110100.0,110090.0,0.00048664]
[1756467634554,0.30999798,110100.0,110090.0,0.00048664]
[1756467635185,0.32421534,110100.0,110090.0,0.00048664]
[1756467635471,0.30459768,110100.0,110090.0,0.00048664]
[1756467635676,5.36743344,110100.0,110090.0,0.00048664]
[1756467635877,5.36743344,110100.0,110090.0,1e-08]
[1756467635878,5.70743344,110100.0,110090.0,1e-08]
[1756467636296,5.7319563,110100.0,110090.0,1e-08]
[1756467636502,5.7339563,110100.0,110090.0,1e-08]
[1756467637237,5.7359563,110100.0,110090.0,1e-08]
[1756467637408,5.63806428,110100.0,110090.0,1e-08]
[1756467638306,5.63805327,110100.0,110090.0,1e-08]
[1756467640430,5.64058327,110100.0,110090.0,1e-08]
[1756467641797,5.62636591,110100.0,110090.0,1e-08]
[1756467641991,5.71466223,110100.0,110090.0,1e-08]
[1756467642720,5.76012391,110100.0,110090.0,1e-08]
[1756467644019,0.52166954,110090.0,110080.0,0.0004]
[1756467644216,5.64294412,110090.0,110080.0,0.00359]
[1756467644415,5.64493412,110090.0,110080.0,0.00574]
[1756467644636,5.71321273,110090.0,110080.0,0.00574]
[1756467645216,5.75576024,110090.0,110080.0,0.00574]
[1756467645413,5.75676024,110090.0,110080.0,0.00574]
[1756467646652,5.75676024,110090.0,110080.0,0.0004]
[1756467646850,5.51873781,110090.0,110080.0,0.0004]
[1756467647024,5.70040735,110090.0,110080.0,0.0004]
[1756467647231,5.70040735,110090.0,110080.0,0.00359]
[1756467647649,5.70041443,110090.0,110080.0,0.00359]
[1756467649027,5.70041443,110090.0,110080.0,0.00571]
[1756467650083,5.63014582,110090.0,110080.0,0.00571]
[1756467650282,5.63212582,110090.0,110080.0,0.00571]
[1756467650490,5.63212582,110090.0,110080.0,0.0004]
[1756467650889,5.63466582,110090.0,110080.0,0.0004]
[1756467651101,5.63014582,110090.0,110080.0,0.00568]
[1756467651291,5.71844214,110090.0,110080.0,0.00568]
[1756467651702,5.72043214,110090.0,110080.0,0.00568]
[1756467652576,5.72102982,110090.0,110080.0,0.00568]
[1756467654565,5.70681031,110090.0,110080.0,0.00568]
[1756467654796,5.70683347,110090.0,110080.0,0.00568]
[1756467655009,5.70685993,110090.0,110080.0,0.00568]
[1756467655630,5.70686017,110090.0,110080.0,0.00568]
[1756467656824,0.18168604,110080.0,110070.0,0.0004]
[1756467657059,5.5535686,110080.0,110070.0,0.0004]
[1756467657257,0.5535686,110080.0,110070.0,0.00252]
[1756467657920,0.56778828,110080.0,110070.0,0.00252]
[1756467658483,0.561415,110080.0,110070.0,0.00252]
[1756467658684,0.22779274,110080.0,110070.0,0.00252]
[1756467658887,0.22779274,110080.0,110070.0,0.00568]
[1756467660529,0.03188702,110080.0,110070.0,0.18738255]
[1756467661083,0.21357306,110080.0,110070.0,0.18738255]
[1756467661268,0.2135778,110080.0,110070.0,0.18738255]
[1756467661485,0.2135778,110080.0,110070.0,0.21470455]
[1756467663676,0.03189176,110080.0,110070.0,0.21470455]
[1756467664291,0.2135778,110080.0,110070.0,0.21470455]
[1756467664503,0.03189618,110080.0,110070.0,0.21470455]
[1756467664885,0.03189621,110080.0,110070.0,0.21470455]
[1756467665522,0.21358225,110080.0,110070.0,0.21470455]
[1756467665940,0.21358225,110080.0,110070.0,1.33483718]
[1756467665941,0.03189621,110080.0,110070.0,1.33483718]
[1756467666144,0.02551697,110080.0,110070.0,1.78407232]
[1756467666333,0.00850565,110080.0,110070.0,1.78407232]
[1756467666737,0.00059768,110090.0,110080.0,0.18168604]
[1756467666953,0.02609571,110090.0,110080.0,1.38933207]
[1756467667164,0.02609571,110090.0,110080.0,1.39145207]
[1756467667380,0.00909702,110090.0,110080.0,1.39145207]
[1756467667591,0.00909702,110090.0,110080.0,1.41239089]
[1756467669133,0.00909702,110090.0,110080.0,1.41339089]
[1756467669351,0.00059768,110090.0,110080.0,1.41339089]
[1756467669776,0.00059768,110090.0,110080.0,1.41439089]
[1756467671532,0.00059768,110090.0,110080.0,1.44170489]
[1756467672140,0.00059768,110090.0,110080.0,3.0765412]
[1756467673124,0.00059768,110090.0,110080.0,3.0745412]
[1756467673504,0.00059768,110090.0,110080.0,3.0785412]
[1756467674360,0.00059768,110090.0,110080.0,1.01486858]
[1756467674578,0.00059768,110090.0,110080.0,3.0785412]
[1756467675024,0.00059768,110090.0,110080.0,3.0805412]
[1756467675712,0.00059768,110090.0,110080.0,1.01686858]
[1756467675925,0.00059768,110090.0,110080.0,3.0805412]
[1756467680474,0.00059768,110090.0,110080.0,3.12058546]
[1756467683134,0.00059768,110090.0,110080.0,3.52058546]
[1756467684527,0.00059768,110090.0,110080.0,2.48874915]
[1756467685374,0.00059768,110090.0,110080.0,2.08874915]
[1756467685621,0.00059768,110090.0,110080.0,3.12058546]
[1756467686073,0.00590768,110090.0,110080.0,2.04554489]
[1756467686300,0.01437781,110090.0,110080.0,2.04554489]
[1756467686863,0.01437781,110090.0,110080.0,1.67513267]
[1756467687071,0.01437781,110090.0,110080.0,1.40501267]
[1756467687271,0.03132277,110090.0,110080.0,1.40501267]
[1756467687811,0.03132277,110090.0,110080.0,1.40101267]
[1756467688030,0.02601277,110090.0,110080.0,1.40420267]
[1756467688242,0.02601277,110090.0,110080.0,2.54627412]
[1756467689119,0.00906781,110090.0,110080.0,2.54627412]
[1756467689654,0.00908362,110090.0,110080.0,1.51443781]
[1756467690683,0.00908362,110090.0,110080.0,1.77743781]
[1756467691133,0.02605676,110090.0,110080.0,1.77743781]
[1756467691870,0.02605676,110090.0,110080.0,1.77426781]
[1756467692243,0.02605676,110090.0,110080.0,1.77743781]
[1756467692814,0.02813676,110090.0,110080.0,1.77426781]
[1756467693026,0.03136676,110090.0,110080.0,1.77224781]
[1756467693210,0.03137311,110090.0,110080.0,1.68395149]
[1756467696009,0.03137311,110090.0,110080.0,1.68597149]
[1756467696575,0.01439997,110090.0,110080.0,1.68597149]
[1756467696804,0.01441327,110090.0,110080.0,1.42297149]
[1756467697022,0.03142445,110090.0,110080.0,1.51126781]
[1756467697279,0.03142445,110090.0,110080.0,1.40001267]
[1756467698110,0.19012934,110090.0,110080.0,0.028314]
[1756467698313,0.19012934,110090.0,110080.0,0.18268604]
[1756467698964,0.19012934,110090.0,110080.0,0.18168604]
[1756467699218,0.19112934,110090.0,110080.0,0.26998236]
[1756467699452,0.0073798,110090.0,110080.0,1.46518499]
[1756467699678,0.0063798,110090.0,110080.0,1.46518499]
[1756467699891,0.0063798,110090.0,110080.0,1.49250199]
[1756467700103,0.0073798,110090.0,110080.0,1.49250199]
[1756467700298,0.0093598,110090.0,110080.0,1.48731199]
[1756467700726,0.0083598,110090.0,110080.0,1.48731199]
[1756467701862,0.0083598,110090.0,110080.0,1.48931199]
[1756467702104,0.0083598,110090.0,110080.0,1.49133199]
[1756467702314,0.0063798,110090.0,110080.0,1.49250199]
[1756467702529,0.0063798,110090.0,110080.0,1.49450199]
[1756467702949,0.0063798,110090.0,110080.0,1.49350199]
[1756467703709,0.0063798,110090.0,110080.0,0.46166568]
[1756467703935,0.0063798,110090.0,110080.0,1.49350199]
[1756467705860,0.25228386,110100.0,110090.0,0.18166954]
[1756467706097,0.26063479,110100.0,110090.0,1.21350585]
[1756467707279,0.26163479,110100.0,110090.0,1.21350585]
[1756467707482,0.25526386,110100.0,110090.0,1.21350585]
[1756467707607,0.07998172,110100.0,110090.0,1.21350585]
[1756467708046,0.26163476,110100.0,110090.0,1.21350585]
[1756467709049,0.26163476,110100.0,110090.0,1.21667585]
[1756467709709,0.07998172,110100.0,110090.0,1.21868585]
[1756467709925,0.0073709,110100.0,110090.0,1.23315925]
[1756467710531,0.01586457,110100.0,110090.0,1.23315925]
[1756467711086,0.01486457,110100.0,110090.0,1.23315925]
[1756467711229,0.01486415,110100.0,110090.0,1.23415925]
[1756467711653,0.01684415,110100.0,110090.0,1.23415925]
[1756467713420,0.01684415,110100.0,110090.0,0.20232294]
[1756467713621,0.01486415,110100.0,110090.0,0.20232294]
[1756467714664,0.01487217,110100.0,110090.0,0.20232294]
[1756467717521,0.01487217,110100.0,110090.0,1.23415925]
[1756467717946,0.0084938,110100.0,110090.0,1.23415925]
[1756467718172,0.01487401,110100.0,110090.0,1.26147425]
[1756467718593,0.18163674,110110.0,110100.0,0.18165304]
[1756467718807,0.1985039,110110.0,110100.0,0.27512936]
[1756467719012,0.1985039,110110.0,110100.0,0.18683304]
[1756467719780,0.1995039,110110.0,110100.0,0.18683304]
[1756467720182,0.01588716,110110.0,110100.0,0.18683304]
[1756467720520,0.01588716,110110.0,110100.0,0.25671304]
[1756467721142,0.01588716,110110.0,110100.0,1.28854935]
[1756467721347,0.01588716,110110.0,110100.0,1.37684567]
[1756467721551,0.01588716,110110.0,110100.0,1.46514199]
[1756467721750,0.00950696,110110.0,110100.0,1.49245499]
[1756467722008,0.00950696,110110.0,110100.0,1.51339381]
[1756467722205,0.00950696,110110.0,110100.0,1.85339381]
[1756467722556,0.00950156,110110.0,110100.0,1.85339381]
[1756467722756,0.00850156,110110.0,110100.0,1.85339381]
[1756467724348,0.00850156,110110.0,110100.0,1.86350354]
[1756467724562,0.00059745,110130.0,110120.0,0.18162005]
[1756467724764,0.00059745,110130.0,110120.0,0.19609345]
[1756467725013,0.01546454,110130.0,110120.0,0.27115345]
[1756467725185,0.01744454,110130.0,110120.0,0.27115345]
[1756467725394,0.19904809,110130.0,110120.0,0.25150005]
[1756467726468,0.20004809,110130.0,110120.0,0.25351005]
[1756467727105,0.20004809,110130.0,110120.0,0.25150005]
[1756467727460,0.19367648,110130.0,110120.0,0.25150005]
[1756467727654,0.19567648,110130.0,110120.0,0.25150005]
[1756467728096,0.19567001,110130.0,110120.0,0.25150005]
[1756467731699,0.19567001,110130.0,110120.0,0.25668005]
[1756467737013,0.18162005,110120.0,110110.0,0.03048]
[1756467737229,0.19209906,110120.0,110110.0,0.20894654]
[1756467738479,0.19309906,110120.0,110110.0,0.20894654]
[1756467738973,0.19309612,110120.0,110110.0,0.02731]
[1756467739697,0.19409612,110120.0,110100.0,0.35208201]
[1756467740139,0.19659612,110120.0,110100.0,0.37939401]
[1756467740547,0.19559612,110120.0,110100.0,0.37939401]
[1756467740929,0.18163654,110110.0,110100.0,0.27884504]
[1756467741111,0.19211261,110110.0,110100.0,0.25153304]
[1756467741531,0.19211261,110110.0,110100.0,0.25672304]
[1756467745246,0.19012261,110110.0,110100.0,0.25672304]
[1756467747323,0.19649413,110110.0,110100.0,0.25672304]
[1756467747494,0.19649413,110110.0,110100.0,0.34501936]
[1756467749662,0.18163654,110110.0,110100.0,0.34501936]
[1756467750003,0.1965066,110110.0,110100.0,0.34501936]
[1756467751341,0.1965066,110110.0,110100.0,0.37233436]
[1756467752336,0.01487006,110110.0,110100.0,0.37233436]
[1756467752718,0.1984866,110110.0,110100.0,0.28403804]
[1756467753311,0.1984859,110110.0,110100.0,0.28403804]
[1756467754500,0.01486936,110110.0,110100.0,0.28403804]
[1756467757636,0.01486936,110110.0,110100.0,1.31587435]
[1756467757849,0.00849718,110110.0,110100.0,1.31587435]
[1756467758162,0.00849718,110110.0,110100.0,1.40417067]
[1756467760591,0.07912969,110120.0,110110.0,0.18163654]
[1756467760867,0.08550388,110120.0,110110.0,0.18682654]
[1756467761283,0.26712393,110120.0,110110.0,0.21413954]
[1756467762047,0.26812393,110120.0,110110.0,0.21413954]
[1756467762242,0.27010393,110120.0,110110.0,0.21413954]
[1756467763184,0.08848388,110120.0,110110.0,0.21413954]
[1756467763404,0.08650388,110120.0,110110.0,0.21413954]
[1756467763561,0.08750388,110120.0,110110.0,0.21413954]
[1756467763878,0.08550388,110120.0,110110.0,0.21413954]
[1756467764206,0.08650388,110120.0,110110.0,0.21413954]
[1756467764413,0.08650388,110120.0,110110.0,0.22861294]
[1756467764587,0.08550388,110120.0,110110.0,0.22861294]
[1756467764801,0.01487306,110120.0,110110.0,0.22861294]
[1756467765007,0.01587306,110120.0,110110.0,0.22861294]
[1756467765588,0.01687306,110120.0,110110.0,0.22861294]
[1756467765814,0.01687306,110120.0,110110.0,1.34874557]
[1756467766136,0.01049889,110120.0,110110.0,1.36968439]
[1756467766518,0.00949889,110120.0,110110.0,0.33784808]
[1756467766724,0.00949889,110120.0,110110.0,1.36968439]
[1756467767707,0.00059745,110130.0,110120.0,0.18162005]
[1756467767843,0.01547455,110130.0,110120.0,0.33979637]
[1756467768047,0.01547455,110130.0,110120.0,0.34498637]
[1756467768467,0.01547455,110130.0,110120.0,0.37229437]
[1756467768673,0.01547455,110130.0,110120.0,1.492427]
[1756467768898,0.00909865,110130.0,110120.0,1.492427]
[1756467771212,0.00059745,110130.0,110120.0,1.492427]
[1756467771417,0.00909001,110130.0,110120.0,1.492427]
[1756467776666,0.00908493,110130.0,110120.0,1.492427]
[1756467777334,0.00908493,110130.0,110120.0,0.46059069]
[1756467777554,0.00908493,110130.0,110120.0,1.492427]
[1756467781234,0.00908493,110130.0,110120.0,1.51336582]
[1756467781432,0.00059745,110130.0,110120.0,1.51336582]
[1756467781981,0.00908453,110130.0,110120.0,1.51336582]
[1756467782182,0.00908391,110130.0,110120.0,1.51336582]
[1756467784935,0.00908391,110130.0,110120.0,1.51436582]
[1756467785112,0.00908391,110130.0,110120.0,1.51636582]
[1756467791434,0.00908391,110130.0,110120.0,0.48452951]
[1756467791611,0.00908391,110130.0,110120.0,1.51636582]
[1756467792021,0.00909375,110130.0,110120.0,1.51636582]
[1756467794622,0.00909375,110130.0,110120.0,0.48452951]
[1756467794845,0.00909375,110130.0,110120.0,1.51636582]
[1756467801306,0.00909375,110130.0,110120.0,2.88820213]
[1756467801748,0.00909375,110130.0,110120.0,1.85636582]
[1756467802671,0.00059745,110130.0,110120.0,1.85636582]
[1756467803346,0.0091067,110130.0,110120.0,1.85636582]
[1756467806422,0.0091067,110130.0,110120.0,2.11936582]
[1756467806862,0.0091067,110130.0,110120.0,1.08752951]
[1756467807042,0.0091067,110130.0,110120.0,2.11936582]
[1756467808087,0.0110867,110130.0,110120.0,2.11936582]
[1756467808288,0.07063082,110140.0,110130.0,0.18160355]
[1756467808467,0.07714408,110140.0,110130.0,0.18160355]
[1756467809075,0.07714408,110140.0,110130.0,0.20890955]
[1756467810284,0.07714408,110140.0,110130.0,0.21185955]
[1756467810913,0.25873115,110140.0,110130.0,0.20890955]
[1756467813548,0.25873102,110140.0,110130.0,0.20890955]
[1756467814180,0.07714395,110140.0,110130.0,0.20890955]
[1756467815533,0.25873102,110140.0,110130.0,0.20890955]
[1756467817535,0.25873102,110140.0,110130.0,0.21185955]
[1756467818860,0.00651313,110140.0,110130.0,0.21185955]
[1756467819446,0.1881002,110140.0,110130.0,0.21185955]
[1756467820272,0.19661063,110140.0,110130.0,0.21185955]
[1756467823773,0.01502356,110140.0,110130.0,0.21185955]
[1756467824448,0.01502284,110140.0,110130.0,0.21390955]
[1756467824832,0.19660991,110140.0,110130.0,0.21390955]
[1756467826831,0.21362987,110140.0,110130.0,0.21390955]
[1756467827137,0.0320428,110140.0,110130.0,0.21390955]
[1756467827488,0.03204279,110140.0,110130.0,0.21390955]
[1756467828121,0.21362986,110140.0,110130.0,0.21390955]
[1756467831378,0.24338616,110140.0,110130.0,0.21185955]
[1756467831565,0.21362986,110140.0,110130.0,0.21185955]
[1756467831979,0.21362986,110140.0,110130.0,0.21383955]
[1756467832832,0.21462986,110140.0,110130.0,0.21383955]
[1756467833274,0.21562986,110140.0,110130.0,0.21383955]
[1756467833579,0.21562986,110140.0,110130.0,0.21185955]
[1756467833786,0.21562986,110140.0,110130.0,0.21383955]
[1756467835240,0.21563083,110140.0,110130.0,0.21383955]
[1756467839490,0.07199991,110150.0,110130.0,0.21383955]
[1756467839690,0.18158707,110140.0,110130.0,0.21383955]
[1756467841396,0.07199991,110150.0,110130.0,0.21383955]
[1756467841605,0.07199991,110150.0,110140.0,0.00316]
[1756467841832,0.07199991,110150.0,110140.0,0.00514]
[1756467842045,0.07299991,110150.0,110140.0,0.00514]
[1756467842658,0.07199991,110150.0,110140.0,0.00514]
[1756467843129,0.18158707,110140.0,110130.0,0.20890955]
[1756467843330,0.18158707,110140.0,110130.0,0.21404955]
[1756467847459,0.18158707,110140.0,110130.0,0.28388955]
[1756467850306,0.20694577,110140.0,110130.0,0.100306]
[1756467850508,0.18158707,110140.0,110130.0,0.097146]
[1756467850661,0.18158707,110140.0,110130.0,0.06984]
[1756467851431,0.21349691,110140.0,110130.0,0.06984]
[1756467851920,0.21349691,110140.0,110130.0,0.073]
[1756467852135,0.24346781,110140.0,110130.0,0.073]
[1756467855529,0.24346265,110140.0,110130.0,0.073]
[1756467855742,0.25196892,110140.0,110130.0,0.073]
[1756467856543,0.25196892,110140.0,110130.0,0.06984]
[1756467857545,0.18160355,110130.0,110120.0,0.03047]
[1756467857747,0.25686418,110130.0,110120.0,0.21222029]
[1756467857921,0.25686418,110130.0,110120.0,0.03258024]
[1756467859157,0.25686418,110130.0,110120.0,0.21620029]
[1756467859560,0.25686418,110130.0,110120.0,0.21720029]
[1756467860143,0.21350693,110130.0,110120.0,0.21720029]
[1756467865294,0.21349831,110130.0,110120.0,0.21206029]
[1756467865518,0.21349831,110130.0,110120.0,0.21515029]
[1756467865685,0.21349831,110130.0,110120.0,0.21722029]
[1756467865902,0.21349831,110130.0,110120.0,0.03353024]
[1756467866103,0.21349831,110130.0,110120.0,0.21515029]
[1756467866304,0.19860136,110130.0,110120.0,0.21722029]
[1756467866499,0.21347406,110130.0,110120.0,0.21522029]
[1756467867127,0.21347405,110130.0,110120.0,0.21422029]
[1756467869310,0.21347405,110130.0,110120.0,0.21215029]
[1756467869626,0.21347405,110130.0,110120.0,0.21422029]
[1756467869980,0.21347405,110130.0,110120.0,0.03260024]
[1756467870187,0.21347405,110130.0,110120.0,0.03053024]
[1756467870188,0.24134163,110130.0,110120.0,0.03053024]
[1756467871561,0.24134163,110130.0,110120.0,0.02744024]
[1756467871976,0.24134163,110130.0,110120.0,0.03053024]
[1756467872950,0.24134163,110130.0,110120.0,0.02744024]
[1756467873532,0.24234163,110130.0,110120.0,0.03053024]
[1756467873742,0.24334163,110130.0,110120.0,0.03053024]
[1756467875497,0.24334163,110130.0,110120.0,0.03260024]
[1756467876116,0.24334163,110130.0,110120.0,0.03053024]
[1756467877268,0.21784513,110130.0,110120.0,0.03053024]
[1756467877475,0.24334918,110130.0,110120.0,0.03053024]
[1756467879269,0.24334918,110130.0,110120.0,0.03260024]
[1756467879475,0.2154816,110130.0,110120.0,0.03260024]
[1756467879793,0.2154816,110130.0,110120.0,0.21422029]
[1756467880008,0.2154816,110130.0,110120.0,0.03260024]
[1756467880611,0.2144816,110130.0,110120.0,0.03260024]
[1756467881001,0.21448377,110130.0,110120.0,0.03260024]
[1756467881415,0.21548377,110130.0,110120.0,0.03260024]
[1756467881611,0.21448377,110130.0,110120.0,0.03260024]
[1756467882044,0.21548377,110130.0,110120.0,0.03260024]
[1756467882483,0.25946003,110130.0,110120.0,0.03053024]
[1756467882906,0.26046003,110130.0,110120.0,0.03053024]
[1756467883130,0.25946003,110130.0,110120.0,0.03053024]
[1756467883596,0.26046003,110130.0,110120.0,0.03053024]
[1756467885171,0.26046003,110130.0,110120.0,0.02744024]
[1756467885372,0.26046003,110130.0,110120.0,0.03053024]
[1756467885569,0.26046003,110130.0,110120.0,0.03260024]
[1756467886008,0.21548377,110130.0,110120.0,0.03260024]
[1756467888044,0.18360355,110130.0,110120.0,0.03260024]
[1756467888223,0.21551717,110130.0,110120.0,0.03260024]
[1756467888608,0.21551719,110130.0,110120.0,0.03260024]
[1756467888833,0.21551721,110130.0,110120.0,0.21422029]
[1756467889035,0.21551721,110130.0,110120.0,0.03260024]
[1756467890553,0.24410921,110130.0,110120.0,0.03260024]
[1756467891686,0.22708859,110130.0,110120.0,0.03260024]
[1756467891886,0.24410957,110130.0,110120.0,0.03260024]
[1756467892354,0.21551757,110130.0,110120.0,0.03260024]
[1756467895356,0.21551757,110130.0,110120.0,0.21422029]
[1756467895694,0.21551757,110130.0,110120.0,0.03260024]
[1756467897287,0.21551757,110130.0,110120.0,0.21422029]
[1756467898395,0.21551757,110130.0,110120.0,0.03260024]
[1756467898988,0.20913934,110130.0,110120.0,0.03260024]
[1756467899224,0.21552328,110130.0,110120.0,0.03260024]
[1756467899428,0.21552328,110130.0,110120.0,0.21422029]
[1756467900285,0.03391973,110130.0,110120.0,1.3740473]
[1756467900495,0.03391973,110130.0,110120.0,1.46234362]
[1756467901346,0.03291973,110130.0,110120.0,0.30251661]
[1756467901563,0.03291973,110130.0,110120.0,1.3740473]
[1756467901774,0.03191973,110130.0,110120.0,1.3740473]
[1756467902833,0.03191973,110130.0,110120.0,1.46234362]
[1756467903247,0.03191973,110130.0,110120.0,0.30251661]
[1756467903463,0.03191973,110130.0,110120.0,1.46234362]
[1756467903668,0.03191973,110130.0,110120.0,1.55063994]
[1756467904895,0.03191442,110130.0,110120.0,0.39081293]
[1756467905116,0.03191442,110130.0,110120.0,1.55063994]
[1756467905865,0.03191442,110130.0,110120.0,1.46234362]
[1756467906855,0.00851193,110130.0,110120.0,2.62217063]
[1756467908223,0.00851193,110130.0,110120.0,2.62317063]
[1756467908628,0.00850757,110140.0,110130.0,0.18160355]
[1756467908816,0.04038399,110140.0,110130.0,2.50421757]
[1756467909016,0.03400871,110140.0,110130.0,2.68277021]
[1756467909219,0.01700795,110140.0,110130.0,2.71007321]
[1756467915096,0.01700795,110140.0,110130.0,2.77991321]
[1756467916537,0.00850757,110140.0,110130.0,3.38291321]
[1756467917144,0.00850757,110140.0,110130.0,3.38591321]
[1756467917572,0.00850757,110140.0,110130.0,3.38291321]
[1756467918146,0.00850757,110140.0,110130.0,3.38591321]
[1756467919381,0.00850757,110140.0,110130.0,2.09653836]